bitfinex-derivatives/quotes_BTCF0:USTF0_20250422
["timestamp","ask_amount","ask_price","bid_price","bid_amount"]
[1745338193425,0.1934,90958.0,90954.0,0.81683418]
[1745338193816,0.1934,90958.0,90954.0,0.79044331]
[1745338194224,0.11004128,90955.0,90954.0,0.7272]
[1745338194527,0.11004128,90955.0,90954.0,0.1867]
[1745338194837,0.00944386,90955.0,90954.0,0.4756775]
[1745338195222,0.20144386,90955.0,90954.0,0.4766775]
[1745338195416,0.20144386,90955.0,90954.0,0.4796775]
[1745338195822,0.20144386,90955.0,90954.0,0.4786775]
[1745338197324,0.20144386,90955.0,90954.0,0.4706775]
[1745338197531,0.20144386,90955.0,90954.0,0.1188775]
[1745338197923,0.20044386,90955.0,90954.0,0.1128775]
[1745338198129,0.20044386,90955.0,90954.0,0.1138775]
[1745338198329,0.20044386,90955.0,90954.0,0.1158775]
[1745338198526,0.20044386,90955.0,90954.0,0.1118775]
[1745338198728,0.20044386,90955.0,90954.0,0.1178775]
[1745338198729,0.20144386,90955.0,90954.0,0.1178775]
[1745338199026,0.31584199,90980.0,90954.0,0.480744]
[1745338199226,0.1815,90971.0,90970.0,0.1098581]
[1745338199832,0.1815,90971.0,90970.0,0.4872581]
[1745338200218,0.192,90971.0,90970.0,0.4872581]
[1745338201126,0.1904,90971.0,90970.0,0.4872581]
[1745338201627,0.1904,90971.0,90970.0,0.45827413]
[1745338201829,0.00016487,90980.0,90979.0,0.1098473]
[1745338202132,0.00016487,90980.0,90979.0,0.4966736]
[1745338202441,0.1904,90986.0,90985.0,0.10984]
[1745338203325,0.1904,90986.0,90985.0,0.48684]
[1745338203729,0.00016487,90995.0,90988.0,0.1098364]
[1745338204027,0.00016487,90995.0,90994.0,0.1098292]
[1745338204221,0.00850804,90995.0,90994.0,0.1098292]
[1745338205219,0.20050804,90995.0,90994.0,0.1168292]
[1745338205626,0.31033604,90995.0,90994.0,0.007]
[1745338206121,0.1098461,90980.0,90979.0,0.00016487]
[1745338206921,0.4850461,90980.0,90979.0,0.00016487]
[1745338207126,0.6770461,90980.0,90979.0,0.00016487]
[1745338207529,0.6780461,90980.0,90979.0,0.00916487]
[1745338207926,0.6770461,90980.0,90979.0,0.00316487]
[1745338208128,0.5672,90980.0,90979.0,0.00316487]
[1745338208434,0.192,90980.0,90979.0,0.47381217]
[1745338208626,0.00850804,90995.0,90979.0,0.36396487]
[1745338208931,0.08599156,90994.0,90993.0,0.1098292]
[1745338209135,0.38782076,90994.0,90993.0,0.1098292]
[1745338209429,0.38782076,90994.0,90993.0,0.1088292]
[1745338209820,0.76022076,90994.0,90993.0,0.1098292]
[1745338210433,0.65039156,90994.0,90993.0,0.1098292]
[1745338210627,0.65039156,90994.0,90993.0,0.0905915]
[1745338211027,0.45779156,90994.0,90993.0,0.4792915]
[1745338211222,0.45879156,90994.0,90993.0,0.4792915]
[1745338211434,0.45879156,90994.0,90993.0,0.4782915]
[1745338212025,0.3728,90994.0,90993.0,0.46455072]
[1745338212225,0.3728,90994.0,90993.0,0.3877]
[1745338212226,0.2906292,90994.0,90993.0,0.3877]
[1745338212450,0.1098364,90988.0,90987.0,0.3608]
[1745338212626,0.1098324,90992.0,90987.0,0.3608]
[1745338212828,0.3841,90991.0,90990.0,0.109834]
[1745338213131,0.5761,90991.0,90990.0,0.109834]
[1745338213323,0.1098364,90988.0,90987.0,0.4706364]
[1745338213530,0.0549173,90990.0,90989.0,0.1098352]
[1745338213724,0.1098364,90988.0,90987.0,0.4157183]
[1745338214130,0.192,90988.0,90987.0,0.0549183]
[1745338214535,0.192,90988.0,90987.0,0.0569183]
[1745338215126,0.192,90988.0,90987.0,0.0549183]
[1745338215526,0.192,90988.0,90987.0,0.0569183]
[1745338216132,0.192,90988.0,90987.0,0.0579183]
[1745338216342,0.3018364,90988.0,90987.0,0.0579183]
[1745338216640,0.6772364,90988.0,90987.0,0.003]
[1745338216835,0.6772364,90988.0,90987.0,0.001]
[1745338217037,0.0549214,90983.0,90979.0,0.00016487]
[1745338217238,0.4706461,90980.0,90979.0,0.00016487]
[1745338217739,0.1098485,90978.0,90977.0,0.08362563]
[1745338218130,0.3018485,90978.0,90977.0,0.08362563]
[1745338218335,0.6638485,90978.0,90977.0,0.04404318]
[1745338218530,0.554,90978.0,90977.0,0.04404318]
[1745338219340,0.3723,90978.0,90977.0,0.04404318]
[1745338219551,0.1,91000.0,90994.0,0.1098292]
[1745338219740,0.1803,90997.0,90994.0,0.4706292]
[1745338220433,0.1803,90997.0,90994.0,0.83209499]
[1745338220640,0.1803,90997.0,90994.0,1.02039499]
[1745338220833,0.01050804,90995.0,90994.0,1.04853862]
[1745338221034,0.31584199,91030.0,91018.0,0.1098002]
[1745338221232,0.0133631,91019.0,91018.0,0.1098002]
[1745338221437,0.3764,91029.0,91028.0,0.1097881]
[1745338221636,0.4034879,91029.0,91028.0,0.1087881]
[1745338221836,0.2075879,91029.0,91028.0,0.08131759]
[1745338222042,0.21588587,91029.0,91028.0,0.08131759]
[1745338222239,0.03538587,91029.0,91028.0,0.07531759]
[1745338222446,0.00016487,91038.0,91022.0,0.3608]
[1745338222741,0.1098159,91006.0,91005.0,0.109814]
[1745338223140,0.1914,91007.0,91006.0,0.1098147]
[1745338223340,0.1098155,91006.0,91005.0,0.1098143]
[1745338223534,0.1098159,91005.0,91004.0,0.34723021]
[1745338224139,0.3018159,91005.0,91004.0,0.45704731]
[1745338224540,0.192,91005.0,91004.0,0.45704731]
[1745338224942,0.193,91005.0,91004.0,0.46004731]
[1745338225549,0.193,91005.0,91004.0,0.46304731]
[1745338225747,0.193,91005.0,91004.0,0.43666805]
[1745338225949,0.3028159,91005.0,91004.0,0.32685095]
[1745338226151,1.21379991,91005.0,91004.0,0.006]
[1745338226451,0.1098449,90981.0,90980.0,0.3608]
[1745338226843,0.3608,90987.0,90977.0,0.1098493]
[1745338227150,0.4994466,90980.0,90979.0,0.1098473]
[1745338227843,0.3896,90980.0,90979.0,0.4706473]
[1745338228249,0.5816,90980.0,90979.0,0.4706473]
[1745338228441,0.3823,90980.0,90979.0,0.4706473]
[1745338228646,0.3823,90980.0,90979.0,0.4796473]
[1745338228948,0.3823,90980.0,90979.0,0.09960874]
[1745338229838,0.3823,90980.0,90979.0,0.009]
[1745338230039,0.4921461,90980.0,90979.0,0.009]
[1745338230237,0.4921461,90980.0,90979.0,0.1188473]
[1745338230443,0.4931461,90980.0,90979.0,0.012]
[1745338231448,0.15191662,90980.0,90979.0,0.4826473]
[1745338231840,0.15191662,90980.0,90979.0,0.84256329]
[1745338232246,0.001,90980.0,90979.0,0.84256329]
[1745338232745,0.001,90980.0,90979.0,0.80299475]
[1745338232946,0.001,90980.0,90979.0,0.78925607]
[1745338233150,0.001,90980.0,90979.0,0.79925607]
[1745338233746,0.001,90980.0,90979.0,0.73071599]
[1745338233948,0.001,90980.0,90979.0,0.59056329]
[1745338235344,0.001,90980.0,90979.0,0.4806473]
[1745338235544,0.001,90980.0,90979.0,0.4706473]
[1745338235848,0.001,90980.0,90979.0,0.3608]
[1745338236147,0.193,90980.0,90979.0,0.4706473]
[1745338236349,0.193,90980.0,90979.0,0.8314473]
[1745338236544,0.5855,90980.0,90979.0,0.80396533]
[1745338236945,0.5855,90980.0,90979.0,0.78473038]
[1745338237147,0.196,90980.0,90979.0,0.78473038]
[1745338237344,0.196,90980.0,90979.0,0.89464637]
[1745338237947,0.195,90980.0,90979.0,1.07444637]
[1745338238143,0.004,90980.0,90979.0,1.07444637]
[1745338238848,0.004,90980.0,90979.0,1.034877]
[1745338240050,0.003,90980.0,90979.0,1.034877]
[1745338240254,0.004,90980.0,90979.0,1.035877]
[1745338240456,0.001,90980.0,90979.0,1.038877]
[1745338240752,0.00016488,90989.0,90988.0,0.1088364]
[1745338240957,0.00016488,90989.0,90988.0,0.2234364]
[1745338241345,0.00016488,90989.0,90988.0,0.2224364]
[1745338241654,0.00016488,90989.0,90988.0,0.4168364]
[1745338241861,0.00116488,90989.0,90988.0,0.39045363]
[1745338242045,0.00216488,90989.0,90988.0,0.39045363]
[1745338242245,0.19416488,90989.0,90988.0,0.39045363]
[1745338243256,0.66380008,90989.0,90988.0,0.2244364]
[1745338243456,0.30300008,90989.0,90988.0,0.002]
[1745338243654,0.66380008,90989.0,90988.0,0.002]
[1745338243955,0.1098364,90988.0,90987.0,0.109837]
[1745338244154,0.6803364,90988.0,90987.0,0.109837]
[1745338244855,0.1098376,90987.0,90986.0,0.3029388]
[1745338245050,0.1098376,90987.0,90986.0,0.28369889]
[1745338245246,0.4883376,90987.0,90986.0,0.28369889]
[1745338245854,0.4883376,90987.0,90986.0,0.1098388]
[1745338246046,0.6803376,90987.0,90986.0,0.07025919]
[1745338246252,0.5705,90987.0,90986.0,0.07025919]
[1745338246446,0.6803376,90987.0,90986.0,0.07025919]
[1745338246647,0.6803376,90987.0,90978.0,0.1809]
[1745338246648,0.1098569,90971.0,90952.0,0.947]
[1745338246857,0.8314569,90971.0,90959.0,0.1695353]
[1745338247052,1.0234569,90971.0,90959.0,0.1146]
[1745338247255,0.1098702,90960.0,90959.0,0.1146]
[1745338247455,0.4706702,90960.0,90959.0,0.1146]
[1745338247658,0.4706702,90960.0,90959.0,0.2244714]
[1745338247848,0.47889358,90960.0,90959.0,0.2244714]
[1745338248157,0.67089358,90960.0,90959.0,0.2244714]
[1745338249559,0.67189358,90960.0,90959.0,0.2254714]
[1745338249856,0.20122338,90960.0,90959.0,0.20507835]
[1745338250354,0.00922338,90960.0,90959.0,0.20507835]
[1745338250560,0.11909358,90960.0,90959.0,0.58067835]
[1745338250757,0.47989358,90960.0,90959.0,0.38757835]
[1745338251261,0.47989358,90960.0,90959.0,0.09520695]
[1745338251648,0.47989358,90960.0,90959.0,0.20507835]
[1745338251849,0.67189358,90960.0,90959.0,0.20507835]
[1745338252054,0.67189358,90960.0,90959.0,0.05561499]
[1745338252649,0.67189358,90960.0,90959.0,0.16548639]
[1745338253059,0.67189358,90960.0,90959.0,0.14624022]
[1745338253459,0.67189358,90960.0,90959.0,0.13249296]
[1745338253660,0.67189358,90960.0,90959.0,0.007]
[1745338254260,0.67189358,90960.0,90959.0,0.1168714]
[1745338254559,0.67189358,90960.0,90959.0,0.007]
[1745338255154,0.67189358,90960.0,90959.0,0.1168714]
[1745338257063,0.67189358,90960.0,90959.0,0.0893762]
[1745338257764,0.67189358,90960.0,90959.0,0.06298109]
[1745338258060,0.1098726,90958.0,90957.0,0.0549363]
[1745338258262,0.3018726,90958.0,90957.0,0.0549363]
[1745338258752,0.6875726,90958.0,90957.0,0.0549363]
[1745338259156,0.6895726,90958.0,90957.0,0.0549363]
[1745338259562,0.6895726,90958.0,90957.0,0.0599363]
[1745338260966,0.6895726,90958.0,90957.0,0.2576363]
[1745338261963,0.6875726,90958.0,90957.0,0.3125734]
[1745338262165,0.193,90958.0,90957.0,0.3075734]
[1745338262357,0.197,90958.0,90957.0,0.3075734]
[1745338262555,0.196,90958.0,90957.0,0.3075734]
[1745338262758,0.19188827,90958.0,90957.0,0.6775134]
[1745338262964,0.18788827,90958.0,90957.0,0.6775134]
[1745338263168,0.003,90958.0,90957.0,0.4275134]
[1745338263354,0.004,90958.0,90957.0,0.4275134]
[1745338263559,0.004,90958.0,90957.0,0.41376954]
[1745338264259,0.001,90958.0,90957.0,0.41476954]
[1745338264762,0.00822338,90960.0,90959.0,0.1098714]
[1745338264972,0.19066488,90969.0,90968.0,0.1098606]
[1745338265560,0.55146488,90969.0,90968.0,0.1098606]
[1745338265866,0.00016488,90969.0,90968.0,0.08347149]
[1745338266160,0.00016488,90969.0,90968.0,0.08247149]
[1745338266558,0.1098726,90958.0,90948.0,0.0549423]
[1745338266862,0.4706726,90958.0,90957.0,0.1138738]
[1745338267063,0.6626726,90958.0,90957.0,0.1108738]
[1745338267654,1.0415726,90958.0,90957.0,0.2991738]
[1745338267860,1.0415726,90958.0,90957.0,0.1893]
[1745338268462,1.0415726,90958.0,90957.0,0.1883]
[1745338268860,1.0455726,90958.0,90957.0,0.2981738]
[1745338269166,1.0455726,90958.0,90957.0,0.1883]
[1745338269363,1.0465726,90958.0,90957.0,0.1903]
[1745338269563,0.9367,90958.0,90957.0,0.1903]
[1745338269765,1.0455726,90958.0,90957.0,0.2981738]
[1745338269958,0.9367,90958.0,90957.0,0.26058239]
[1745338270466,0.197,90958.0,90957.0,0.24133683]
[1745338271064,0.197,90958.0,90957.0,0.48133683]
[1745338271267,0.005,90958.0,90957.0,0.48133683]
[1745338272261,0.004,90958.0,90957.0,0.47933683]
[1745338272559,0.3608,90966.0,90965.0,0.1068642]
[1745338272964,0.3608,90966.0,90965.0,0.07837373]
[1745338273461,0.3608,90966.0,90965.0,0.46037373]
[1745338273657,0.3608,90966.0,90965.0,0.44562849]
[1745338273862,0.3608,90966.0,90965.0,0.382]
[1745338274069,0.3618,90966.0,90965.0,0.4928642]
[1745338275066,0.3628,90966.0,90965.0,0.4928642]
[1745338275657,0.3628,90966.0,90965.0,0.4958642]
[1745338275859,0.3628,90966.0,90941.0,0.0549463]
[1745338276058,0.3608,90956.0,90953.0,0.3764]
[1745338276259,0.3794,90955.0,90954.0,0.1098775]
[1745338276767,0.3794,90955.0,90954.0,0.2953775]
[1745338277266,0.192,90955.0,90954.0,0.2953775]
[1745338277464,0.192,90955.0,90954.0,0.25578876]
[1745338277660,0.093821,90955.0,90954.0,0.37573276]
[1745338277865,0.093821,90955.0,90954.0,0.37990876]
[1745338278059,0.093821,90955.0,90954.0,0.30962]
[1745338278259,0.093821,90955.0,90954.0,0.4094975]
[1745338278462,0.094821,90955.0,90954.0,0.4104975]
[1745338279059,0.094821,90955.0,90954.0,0.4134975]
[1745338279563,0.093821,90955.0,90954.0,0.39325163]
[1745338279766,0.094821,90955.0,90954.0,0.39425163]
[1745338279964,0.094821,90955.0,90954.0,0.39525163]
[1745338280370,0.466921,90955.0,90954.0,0.39525163]
[1745338280967,0.466921,90955.0,90954.0,0.36775784]
[1745338281169,0.5767973,90955.0,90954.0,0.11912]
[1745338281362,0.466921,90955.0,90954.0,0.11912]
[1745338281565,0.466921,90955.0,90954.0,0.005]
[1745338281761,0.466921,90955.0,90954.0,0.0884829]
[1745338282161,0.465921,90955.0,90954.0,0.0884829]
[1745338282363,0.466921,90955.0,90954.0,0.1108775]
[1745338282763,0.465921,90955.0,90954.0,0.1118775]
[1745338282959,0.466921,90955.0,90954.0,0.1118775]
[1745338283362,0.466921,90955.0,90954.0,0.07228552]
[1745338283760,0.466921,90955.0,90954.0,0.07128552]
[1745338284162,0.466921,90955.0,90954.0,0.05753837]
[1745338285568,0.468921,90955.0,90954.0,0.05653837]
[1745338287274,0.468921,90955.0,90954.0,0.05753837]
[1745338287864,0.468921,90955.0,90954.0,0.001]
[1745338288065,0.468921,90955.0,90954.0,0.1108775]
[1745338288263,0.466921,90955.0,90954.0,0.1108775]
[1745338288675,0.466921,90955.0,90954.0,0.1098775]
[1745338289371,0.467921,90955.0,90954.0,0.1098775]
[1745338289671,0.466921,90955.0,90954.0,0.07028639]
[1745338289972,0.470921,90955.0,90954.0,0.1098775]
[1745338290179,0.470921,90955.0,90954.0,0.3093775]
[1745338290976,0.470921,90955.0,90954.0,0.1108775]
[1745338291369,0.466921,90955.0,90954.0,0.1108775]
[1745338291570,0.467921,90955.0,90954.0,0.1108775]
[1745338292365,0.466921,90955.0,90954.0,0.1098775]
[1745338292568,0.467921,90955.0,90954.0,0.1098775]
[1745338292766,0.284121,90955.0,90954.0,0.1098775]
[1745338294082,0.466421,90955.0,90954.0,0.1108775]
[1745338294576,0.095821,90955.0,90954.0,0.09713042]
[1745338295172,0.30589995,90959.0,90958.0,0.1098726]
[1745338295374,0.3608,90980.0,90968.0,0.1098606]
[1745338295570,0.5425,90980.0,90968.0,0.4806606]
[1745338295878,0.5425,90980.0,90968.0,0.5895886]
[1745338296068,0.1098519,90976.0,90968.0,0.09962013]
[1745338296267,0.44673096,90971.0,90968.0,0.46892013]
[1745338296476,0.1817,90970.0,90968.0,0.26912013]
[1745338296676,0.3803,90970.0,90968.0,0.26912013]
[1745338296870,0.00921145,90969.0,90968.0,0.26912013]
[1745338297175,0.58151145,90969.0,90968.0,0.26912013]
[1745338297379,0.58151145,90969.0,90968.0,0.26712013]
[1745338297768,0.58151145,90969.0,90968.0,0.2407303]
[1745338298273,0.38191145,90969.0,90968.0,0.2407303]
[1745338298479,0.38291145,90969.0,90968.0,0.2427303]
[1745338299869,0.38391145,90969.0,90968.0,0.2427303]
[1745338300475,0.38391145,90969.0,90968.0,0.2923606]
[1745338300773,0.38391145,90969.0,90968.0,0.2933606]
[1745338300975,0.38391145,90969.0,90968.0,0.3033606]
[1745338301570,0.38391145,90969.0,90968.0,0.3023606]
[1745338301777,0.38391145,90969.0,90968.0,0.3043606]
[1745338302076,0.38291145,90969.0,90968.0,0.3033606]
[1745338302485,0.38291145,90969.0,90968.0,0.3043606]
[1745338303185,0.38191145,90969.0,90968.0,0.3033606]
[1745338303381,0.38291145,90969.0,90968.0,0.3043606]
[1745338303883,0.38291145,90969.0,90963.0,0.1898]
[1745338304077,0.38291145,90969.0,90943.0,0.0549451]
[1745338304078,0.1098738,90957.0,90956.0,0.1136]
[1745338304377,0.0549333,90963.0,90957.0,0.1098735]
[1745338304378,0.1098738,90958.0,90957.0,0.1098735]
[1745338304581,0.1098738,90957.0,90956.0,0.223475]
[1745338304771,0.4968738,90957.0,90956.0,0.20972735]
[1745338304969,0.4968738,90957.0,90956.0,0.19048055]
[1745338305171,0.6888738,90957.0,90956.0,0.08060555]
[1745338305370,0.6908738,90957.0,90956.0,0.19148055]
[1745338305781,0.1098811,90951.0,90943.0,0.1136]
[1745338305986,0.1098895,90945.0,90944.0,0.1098863]
[1745338306280,0.192,90945.0,90944.0,0.1098863]
[1745338306482,0.192,90945.0,90944.0,0.07028942]
[1745338306680,0.192,90945.0,90944.0,0.25198942]
[1745338306880,0.192,90945.0,90944.0,0.43328942]
[1745338308187,0.192,90945.0,90935.0,0.0549496]
[1745338308482,0.3608,90938.0,90937.0,0.70289435]
[1745338309180,0.5528,90938.0,90937.0,0.70289435]
[1745338309380,0.5528,90938.0,90937.0,0.70389435]
[1745338309885,0.5538,90938.0,90937.0,0.70389435]
[1745338310082,0.5538,90938.0,90937.0,0.90269435]
[1745338310302,0.193,90938.0,90937.0,1.20865834]
[1745338310584,0.193,90938.0,90937.0,1.57225834]
[1745338310585,0.07520721,90938.0,90937.0,1.57225834]
[1745338310975,0.07520721,90938.0,90937.0,1.57525834]
[1745338311179,0.001,90938.0,90937.0,1.57525834]
[1745338311382,0.001,90938.0,90937.0,1.59525834]
[1745338311980,0.00016488,90950.0,90949.0,0.1098835]
[1745338312180,0.00016488,90950.0,90949.0,0.1088835]
[1745338312495,0.00016488,90950.0,90949.0,0.06929546]
[1745338313288,0.00116488,90950.0,90949.0,0.05005074]
[1745338313676,0.00216488,90950.0,90949.0,0.05105074]
[1745338313883,0.00216488,90950.0,90949.0,0.001]
[1745338314077,0.00216488,90950.0,90949.0,0.1108835]
[1745338315388,0.00216488,90950.0,90949.0,0.09713659]
[1745338316389,0.36296488,90950.0,90949.0,0.09713659]
[1745338316993,0.36296488,90950.0,90942.0,0.0549454]
[1745338317200,0.36296488,90950.0,90939.0,0.0549473]
[1745338317201,0.3774,90949.0,90938.0,0.3841]
[1745338317382,0.1098865,90947.0,90942.0,0.0549455]
[1745338317689,0.577,90946.0,90945.0,0.1098883]
[1745338318197,0.1098895,90944.0,90943.0,0.054945]
[1745338318494,0.109896,90939.0,90938.0,0.1098955]
[1745338318691,0.4706956,90939.0,90938.0,0.1098955]
[1745338319190,0.6626956,90939.0,90938.0,0.1098955]
[1745338319781,0.5528,90939.0,90938.0,0.1098955]
[1745338319981,0.5538,90939.0,90938.0,0.1118955]
[1745338321381,0.5538,90939.0,90938.0,0.09264602]
[1745338321786,0.5538,90939.0,90938.0,0.06624595]
[1745338322186,0.5623,90939.0,90938.0,0.06624595]
[1745338322390,0.9231,90939.0,90938.0,0.06624595]
[1745338325184,0.5428,90939.0,90938.0,0.43794595]
[1745338325385,0.001,90939.0,90938.0,0.43794595]
[1745338325892,0.001,90939.0,90938.0,0.42419723]
[1745338326094,0.001,90939.0,90938.0,0.53416122]
[1745338326592,0.001,90939.0,90938.0,0.55416122]
[1745338328094,0.1919,90948.0,90947.0,0.1088859]
[1745338328289,0.5527,90948.0,90947.0,0.1088859]
[1745338328493,0.1919,90948.0,90947.0,0.1088859]
[1745338328693,0.1919,90948.0,90947.0,0.06929235]
[1745338328894,0.1919,90948.0,90947.0,0.44879235]
[1745338329296,0.1929,90948.0,90947.0,0.44979235]
[1745338329791,0.1929,90948.0,90947.0,0.3805]
[1745338329994,0.1929,90948.0,90947.0,0.4903859]
[1745338330185,0.1929,90948.0,90947.0,0.1108859]
[1745338330389,0.0549446,90945.0,90939.0,0.1098952]
[1745338330587,0.3608,90940.0,90939.0,0.1098956]
[1745338330992,0.3608,90940.0,90939.0,0.10239748]
[1745338331291,0.5528,90940.0,90939.0,0.08239748]
[1745338331491,0.5528,90940.0,90937.0,0.17466675]
[1745338331492,0.1098968,90938.0,90937.0,0.11971805]
[1745338331688,0.1098968,90938.0,90937.0,0.22961605]
[1745338331891,0.3812,90939.0,90938.0,0.1098968]
[1745338332090,0.4910956,90939.0,90938.0,0.1098968]
[1745338332287,0.6830956,90939.0,90938.0,0.1098968]
[1745338332592,0.6830956,90939.0,90938.0,0.1088968]
[1745338333297,0.5732,90939.0,90938.0,0.1108968]
[1745338334694,0.5732,90939.0,90938.0,0.0712974]
[1745338334898,0.5742,90939.0,90938.0,0.0722974]
[1745338336086,0.5742,90939.0,90938.0,0.05854747]
[1745338336287,0.6840956,90939.0,90938.0,0.003]
[1745338336493,0.1099061,90932.0,90931.0,0.1099043]
[1745338336697,0.470704,90932.0,90931.0,0.1099043]
[1745338337196,1.1319,90932.0,90931.0,0.1099043]
[1745338337395,0.9393,90932.0,90931.0,0.1099043]
[1745338337901,0.9393,90932.0,90931.0,0.06425274]
[1745338338097,0.9403,90932.0,90931.0,0.24705274]
[1745338338287,1.050204,90932.0,90931.0,0.002]
[1745338338492,1.050204,90932.0,90931.0,0.1159053]
[1745338338805,0.1099161,90922.0,90918.0,0.0549603]
[1745338339100,0.4707137,90924.0,90923.0,0.1099149]
[1745338339890,0.8442137,90924.0,90923.0,0.1099149]
[1745338340088,1.0362137,90924.0,90923.0,0.1099149]
[1745338341194,0.1099161,90922.0,90917.0,0.11312]
[1745338341402,0.1099293,90913.0,90912.0,0.1648893]
[1745338341693,0.3608,90913.0,90912.0,0.0549639]
[1745338341896,0.470727,90913.0,90912.0,0.0549639]
[1745338342092,0.662727,90913.0,90912.0,0.0549639]
[1745338342399,1.047827,90913.0,90912.0,0.0549639]
[1745338342697,1.050827,90913.0,90912.0,0.0629639]
[1745338343000,1.05893673,90913.0,90912.0,0.0629639]
[1745338343397,0.94900973,90913.0,90912.0,0.0629639]
[1745338344095,0.20310973,90913.0,90912.0,0.4485639]
[1745338344292,0.01110973,90913.0,90912.0,0.4485639]
[1745338345508,0.01110973,90913.0,90912.0,0.4585639]
[1745338345803,0.01110973,90913.0,90912.0,0.6266448]
[1745338346001,0.01110973,90913.0,90912.0,0.6466448]
[1745338346195,0.01110973,90913.0,90912.0,0.63289332]
[1745338346397,0.01110973,90913.0,90912.0,0.61364126]
[1745338346998,0.01110973,90913.0,90912.0,0.59364126]
[1745338349200,0.12103673,90913.0,90912.0,0.12312]
[1745338349405,0.12103673,90913.0,90912.0,0.2230482]
[1745338349607,0.12103673,90913.0,90912.0,0.11312]
[1745338349801,0.30523673,90913.0,90912.0,0.11312]
[1745338350310,0.85803673,90913.0,90912.0,0.11312]
[1745338350603,0.74810973,90913.0,90907.0,0.00495011]
[1745338350801,0.1099401,90905.0,90904.0,0.1099371]
[1745338351001,0.4707401,90905.0,90904.0,0.1099371]
[1745338351304,0.6627401,90905.0,90904.0,0.1099371]
[1745338351494,0.5528,90905.0,90904.0,0.1099371]
[1745338351898,0.9258,90905.0,90904.0,0.1099371]
[1745338352105,0.0549701,90903.0,90900.0,0.1]
[1745338352299,0.1099522,90895.0,90894.0,0.1649185]
[1745338352499,0.4707522,90895.0,90894.0,0.1099478]
[1745338352908,0.3608,90895.0,90894.0,0.1099478]
[1745338353108,0.5528,90895.0,90894.0,0.1099478]
[1745338353312,1.0405488,90895.0,90894.0,0.1099478]
[1745338353804,1.0405488,90895.0,90894.0,0.0835342]
[1745338354397,1.0435488,90895.0,90894.0,0.003]
[1745338354599,0.1099598,90888.0,90887.0,0.1099565]
[1745338354800,0.4707598,90888.0,90887.0,0.09069525]
[1745338355018,0.1099567,90889.0,90888.0,0.109956]
[1745338355307,0.3001585,90887.0,90886.0,0.1099597]
[1745338355507,0.1902,90887.0,90886.0,0.1099597]
[1745338355897,0.3726,90887.0,90886.0,0.1099597]
[1745338356097,0.5646,90887.0,90886.0,0.1099597]
[1745338356508,0.1099642,90884.0,90883.0,0.1099623]
[1745338356806,0.1099642,90884.0,90883.0,0.09620343]
[1745338357012,0.4915642,90884.0,90883.0,0.09620343]
[1745338357209,0.6835642,90884.0,90883.0,0.09620343]
[1745338357506,0.5736,90884.0,90872.0,0.11429078]
[1745338357708,0.5736,90884.0,90883.0,0.1099633]
[1745338358211,0.5756,90884.0,90883.0,0.1099633]
[1745338358406,0.5766,90884.0,90883.0,0.1099633]
[1745338359305,0.5766,90884.0,90883.0,0.07033989]
[1745338360307,0.6865621,90884.0,90883.0,0.07033989]
[1745338360503,0.1099694,90878.0,90877.0,0.00495175]
[1745338360704,0.1099694,90878.0,90877.0,0.11492235]
[1745338360908,0.1099694,90878.0,90877.0,0.14492235]
[1745338361113,0.3019694,90878.0,90877.0,0.14492235]
[1745338361606,0.3883,90878.0,90877.0,0.14492235]
[1745338361812,0.3903,90878.0,90877.0,0.11850652]
[1745338362000,0.194,90878.0,90877.0,0.11850652]
[1745338362308,0.003,90878.0,90877.0,0.11850652]
[1745338363206,0.003,90878.0,90877.0,0.09924444]
[1745338363409,0.003,90878.0,90877.0,0.06924444]
[1745338365217,0.003,90878.0,90877.0,0.07924444]
[1745338365514,0.003,90878.0,90877.0,0.01]
[1745338365711,0.003,90878.0,90877.0,0.1199706]
[1745338367311,0.003,90878.0,90877.0,0.10621212]
[1745338368410,0.003,90878.0,90877.0,0.11621212]
[1745338369913,0.003,90878.0,90877.0,0.08979605]
[1745338371615,0.003,90878.0,90877.0,0.07053433]
[1745338372812,0.003,90878.0,90877.0,0.06053433]
[1745338373203,0.195,90878.0,90877.0,0.06053433]
[1745338374411,0.195,90878.0,90877.0,0.26013433]
[1745338375116,0.003,90878.0,90877.0,0.26013433]
[1745338376017,0.003,90878.0,90877.0,0.30013433]
[1745338376413,0.00296,90878.0,90877.0,0.30013433]
[1745338376818,0.36376,90878.0,90877.0,0.30013433]
[1745338377906,0.3638,90878.0,90877.0,0.2396]
[1745338378113,0.3638,90878.0,90877.0,0.33581239]
[1745338378614,0.3638,90878.0,90877.0,0.29618786]
[1745338379420,0.3638,90878.0,90877.0,0.1499706]
[1745338380011,0.3618,90878.0,90877.0,0.13070875]
[1745338380216,0.3638,90878.0,90877.0,0.13070875]
[1745338380625,0.3618,90878.0,90877.0,0.13070875]
[1745338380826,0.3638,90878.0,90877.0,0.13070875]
[1745338381627,0.3628,90878.0,90877.0,0.32710875]
[1745338381820,0.3638,90878.0,90877.0,0.32710875]
[1745338382026,0.3638,90878.0,90877.0,0.13070875]
[1745338383121,0.5558,90878.0,90877.0,0.13070875]
[1745338384123,0.6657694,90878.0,90877.0,0.13070875]
[1745338384318,0.5558,90878.0,90877.0,0.1099706]
[1745338384919,0.5558,90878.0,90877.0,0.07034373]
[1745338385925,0.5558,90878.0,90877.0,0.1099706]
[1745338386730,0.5538,90878.0,90877.0,0.1099706]
[1745338387023,0.5548,90878.0,90877.0,0.1099706]
[1745338387229,0.6647694,90878.0,90877.0,0.1099706]
[1745338387623,0.5548,90878.0,90877.0,0.1099706]
[1745338388018,0.5548,90878.0,90877.0,0.07694899]
[1745338391027,0.5548,90878.0,90877.0,0.1199706]
[1745338393832,0.5548,90878.0,90877.0,0.09355326]
[1745338394030,0.5548,90878.0,90873.0,0.11212]
[1745338394334,0.5548,90878.0,90873.0,0.12212]
[1745338394335,0.3772,90877.0,90873.0,0.12212]
[1745338394528,0.4321853,90877.0,90874.0,0.054987]
[1745338394734,0.5421564,90877.0,90876.0,0.1099718]
[1745338395139,0.1099728,90876.0,90875.0,0.109973]
[1745338395531,0.4783728,90876.0,90875.0,0.109973]
[1745338395933,0.1099754,90873.0,90872.0,0.11162688]
[1745338396231,0.109979,90870.0,90869.0,0.20448755]
[1745338396441,0.470779,90870.0,90869.0,0.20448755]
[1745338396936,0.470779,90870.0,90869.0,0.16485765]
[1745338397234,0.662779,90870.0,90869.0,0.16485765]
[1745338397436,0.662779,90870.0,90869.0,0.05487745]